[Event "Titled Tuesday Blitz June 21 Late 2022"]
[White "Dardha, Daniel"]
[Black "Holt, Conrad"]
[WhiteFideId "240990"]
[BlackFideId "2034387"]
[WhiteElo "2482"]
[BlackElo "2586"]
[Result "1-0"]
[Round "08"]
[TimeControl "180+1"]
[Date "2022.06.21"]
[WhiteClock "0:00:22"]
[BlackClock "0:00:03"]

1. d4 {[%clk 0:02:58]}  d5 {[%clk 0:03:00]} 2. c4 {[%clk 0:02:58]}  c6 {[%clk 0:03:00]} 3. Nf3 {[%clk 0:02:57]}  Nf6 {[%clk 0:03:00]} 4. Nc3 {[%clk 0:02:57]}  dxc4 {[%clk 0:03:00]} 5. a4 {[%clk 0:02:56]}  Bf5 {[%clk 0:03:00]} 6. Ne5 {[%clk 0:02:55]}  Nbd7 {[%clk 0:02:59]} 7. Nxc4 {[%clk 0:02:53]}  Nb6 {[%clk 0:02:59]} 8. e3 {[%clk 0:02:52]}  e6 {[%clk 0:02:59]} 9. Ne5 {[%clk 0:02:47]}  a5 {[%clk 0:02:58]} 10. Bd3 {[%clk 0:02:46]}  Bxd3 {[%clk 0:02:55]} 11. Nxd3 {[%clk 0:02:45]}  Be7 {[%clk 0:02:53]} 12. O-O {[%clk 0:02:44]}  O-O {[%clk 0:02:53]} 13. Bd2 {[%clk 0:02:43]}  Nc4 {[%clk 0:02:51]} 14. Be1 {[%clk 0:02:42]}  Qb8 {[%clk 0:02:41]} 15. Qb3 {[%clk 0:02:40]}  Nd6 {[%clk 0:02:38]} 16. f3 {[%clk 0:02:37]}  Nf5 {[%clk 0:02:35]} 17. Bf2 {[%clk 0:02:36]}  Rd8 {[%clk 0:02:35]} 18. Ne4 {[%clk 0:02:32]}  Nd5 {[%clk 0:02:25]} 19. Rae1 {[%clk 0:02:28]}  h5 {[%clk 0:02:11]} 20. Ng3 {[%clk 0:02:19]}  Nxg3 {[%clk 0:02:01]} 21. Bxg3 {[%clk 0:02:17]}  Qa7 {[%clk 0:02:01]} 22. Bf2 {[%clk 0:02:15]}  Nb4 {[%clk 0:01:49]} 23. Ne5 {[%clk 0:02:08]}  c5 {[%clk 0:01:40]} 24. f4 {[%clk 0:01:36]}  cxd4 {[%clk 0:01:24]} 25. f5 {[%clk 0:01:34]}  Rd5 {[%clk 0:01:24]} 26. exd4 {[%clk 0:01:30]}  exf5 {[%clk 0:01:19]} 27. Nd3 {[%clk 0:01:24]}  Rd7 {[%clk 0:01:12]} 28. Ne5 {[%clk 0:01:20]}  Rd5 {[%clk 0:01:11]} 29. Qf3 {[%clk 0:01:14]}  Qa6 {[%clk 0:00:41]} 30. Qxh5 {[%clk 0:00:57]}  g6 {[%clk 0:00:39]} 31. Qf3 {[%clk 0:00:52]}  Bf6 {[%clk 0:00:24]} 32. h4 {[%clk 0:00:50]}  Bxe5 {[%clk 0:00:19]} 33. dxe5 {[%clk 0:00:48]}  Qe6 {[%clk 0:00:09]} 34. Bg3 {[%clk 0:00:37]}  Nd3 {[%clk 0:00:08]} 35. Re3 {[%clk 0:00:35]}  Rad8 {[%clk 0:00:08]} 36. h5 {[%clk 0:00:32]}  Nxe5 {[%clk 0:00:09]} 37. Qe2 {[%clk 0:00:31]}  Qb6 {[%clk 0:00:08]} 38. Bf2 {[%clk 0:00:29]}  Qd6 {[%clk 0:00:07]} 39. hxg6 {[%clk 0:00:26]}  fxg6 {[%clk 0:00:07]} 40. Re1 {[%clk 0:00:25]}  Nf7 {[%clk 0:00:06]} 41. Re6 {[%clk 0:00:24]}  Qf4 {[%clk 0:00:03]} 42. Rxg6+ {[%clk 0:00:23]}  Kf8 {[%clk 0:00:03]} 43. Qe7# {[%clk 0:00:22]} 1-0


[Site "https://www.chess.com"]

[Event "Titled Tuesday Blitz June 21 Late 2022"]
[White "Deac, Bogdan-Daniel"]
[Black "Christiansen, Johan-Sebastian"]
[WhiteFideId "1226380"]
[BlackFideId "1512668"]
[WhiteElo "2648"]
[BlackElo "2513"]
[Result "1-0"]
[Round "08"]
[TimeControl "180+1"]
[Date "2022.06.21"]
[WhiteClock "0:00:38"]
[BlackClock "0:00:05"]

1. e4 {[%clk 0:03:00]}  e5 {[%clk 0:02:59]} 2. Nf3 {[%clk 0:03:00]}  Nc6 {[%clk 0:02:59]} 3. Bc4 {[%clk 0:03:01]}  Nf6 {[%clk 0:02:59]} 4. d3 {[%clk 0:03:01]}  Be7 {[%clk 0:02:59]} 5. O-O {[%clk 0:03:00]}  O-O {[%clk 0:03:00]} 6. Re1 {[%clk 0:03:00]}  d6 {[%clk 0:03:01]} 7. a4 {[%clk 0:03:00]}  Kh8 {[%clk 0:03:01]} 8. Nc3 {[%clk 0:02:56]}  Ng8 {[%clk 0:03:01]} 9. Nd5 {[%clk 0:02:55]}  f5 {[%clk 0:03:01]} 10. c3 {[%clk 0:02:41]}  fxe4 {[%clk 0:03:02]} 11. dxe4 {[%clk 0:02:41]}  Be6 {[%clk 0:03:02]} 12. b4 {[%clk 0:02:32]}  Qd7 {[%clk 0:03:02]} 13. Ng5 {[%clk 0:02:21]}  Bg4 {[%clk 0:02:54]} 14. Be2 {[%clk 0:02:10]}  Bxe2 {[%clk 0:02:51]} 15. Qxe2 {[%clk 0:02:11]}  Bxg5 {[%clk 0:02:50]} 16. Bxg5 {[%clk 0:02:09]}  h6 {[%clk 0:02:47]} 17. Be3 {[%clk 0:02:08]}  Nd8 {[%clk 0:02:47]} 18. c4 {[%clk 0:02:06]}  Ne6 {[%clk 0:02:46]} 19. Red1 {[%clk 0:02:00]}  a5 {[%clk 0:02:12]} 20. c5 {[%clk 0:01:49]}  axb4 {[%clk 0:02:12]} 21. cxd6 {[%clk 0:01:48]}  Rxa4 {[%clk 0:01:49]} 22. Rxa4 {[%clk 0:01:34]}  Qxa4 {[%clk 0:01:50]} 23. dxc7 {[%clk 0:01:34]}  Qd7 {[%clk 0:00:12]} 24. Rc1 {[%clk 0:01:31]}  Qf7 {[%clk 0:00:12]} 25. c8=Q {[%clk 0:01:29]}  Rxc8 {[%clk 0:00:12]} 26. Rxc8 {[%clk 0:01:29]}  b3 {[%clk 0:00:13]} 27. Qb2 {[%clk 0:01:26]}  Qd7 {[%clk 0:00:11]} 28. Rc1 {[%clk 0:01:17]}  Qa4 {[%clk 0:00:11]} 29. Nc3 {[%clk 0:01:09]}  Qc4 {[%clk 0:00:10]} 30. Rb1 {[%clk 0:00:49]}  Nd4 {[%clk 0:00:10]} 31. Bxd4 {[%clk 0:00:48]}  exd4 {[%clk 0:00:11]} 32. Qxb3 {[%clk 0:00:48]}  Qxc3 {[%clk 0:00:10]} 33. Qxc3 {[%clk 0:00:45]}  dxc3 {[%clk 0:00:11]} 34. Rxb7 {[%clk 0:00:41]}  Nf6 {[%clk 0:00:11]} 35. f3 {[%clk 0:00:41]}  Nh5 {[%clk 0:00:05]} 36. g3 {[%clk 0:00:38]} 1-0


[Site "https://www.chess.com"]

[Event "Titled Tuesday Blitz June 21 Late 2022"]
[White "Fedoseev, Vladimir"]
[Black "Pakleza, Zbigniew"]
[WhiteFideId "24130737"]
[BlackFideId "1119290"]
[WhiteElo "2726"]
[BlackElo "2467"]
[Result "1-0"]
[Round "08"]
[TimeControl "180+1"]
[Date "2022.06.21"]
[WhiteClock "0:00:54"]
[BlackClock "0:00:01"]

1. e4 {[%clk 0:03:00]}  d6 {[%clk 0:03:00]} 2. d4 {[%clk 0:02:58]}  Nf6 {[%clk 0:03:01]} 3. Nc3 {[%clk 0:02:58]}  c6 {[%clk 0:03:01]} 4. a4 {[%clk 0:02:57]}  Nbd7 {[%clk 0:03:01]} 5. Nf3 {[%clk 0:02:54]}  e5 {[%clk 0:03:01]} 6. h3 {[%clk 0:02:54]}  Be7 {[%clk 0:03:00]} 7. g4 {[%clk 0:02:52]}  O-O {[%clk 0:02:57]} 8. Bg2 {[%clk 0:02:49]}  a5 {[%clk 0:02:43]} 9. O-O {[%clk 0:02:46]}  g6 {[%clk 0:02:18]} 10. Bh6 {[%clk 0:02:43]}  Re8 {[%clk 0:02:19]} 11. Qd2 {[%clk 0:02:43]}  Bf8 {[%clk 0:02:14]} 12. Bxf8 {[%clk 0:02:39]}  Nxf8 {[%clk 0:01:51]} 13. dxe5 {[%clk 0:02:36]}  dxe5 {[%clk 0:01:51]} 14. Qxd8 {[%clk 0:02:36]}  Rxd8 {[%clk 0:01:52]} 15. Nxe5 {[%clk 0:02:36]}  Ne6 {[%clk 0:01:43]} 16. Rfd1 {[%clk 0:02:33]}  Re8 {[%clk 0:01:38]} 17. Nc4 {[%clk 0:02:31]}  Nf4 {[%clk 0:01:39]} 18. Bf1 {[%clk 0:02:25]}  Kg7 {[%clk 0:01:31]} 19. Rd4 {[%clk 0:02:21]}  g5 {[%clk 0:01:16]} 20. f3 {[%clk 0:02:18]}  h5 {[%clk 0:01:13]} 21. Nd6 {[%clk 0:02:13]}  Rh8 {[%clk 0:01:07]} 22. Ne2 {[%clk 0:02:11]}  Ng6 {[%clk 0:01:02]} 23. Ng3 {[%clk 0:02:06]}  Ne5 {[%clk 0:00:52]} 24. Bg2 {[%clk 0:02:03]}  hxg4 {[%clk 0:00:50]} 25. fxg4 {[%clk 0:02:01]}  Be6 {[%clk 0:00:47]} 26. Ngf5+ {[%clk 0:01:59]}  Kg6 {[%clk 0:00:48]} 27. Rad1 {[%clk 0:01:56]}  b6 {[%clk 0:00:35]} 28. b3 {[%clk 0:01:53]}  c5 {[%clk 0:00:29]} 29. R4d2 {[%clk 0:01:51]}  Rab8 {[%clk 0:00:27]} 30. Rf1 {[%clk 0:01:48]}  Rbd8 {[%clk 0:00:24]} 31. Rdf2 {[%clk 0:01:44]}  Nfd7 {[%clk 0:00:15]} 32. Ne3 {[%clk 0:01:39]}  Rhf8 {[%clk 0:00:12]} 33. Nd5 {[%clk 0:01:38]}  Bxd5 {[%clk 0:00:04]} 34. exd5 {[%clk 0:01:36]}  f6 {[%clk 0:00:05]} 35. Be4+ {[%clk 0:01:36]}  Kg7 {[%clk 0:00:04]} 36. Nf5+ {[%clk 0:01:35]}  Kf7 {[%clk 0:00:04]} 37. d6 {[%clk 0:01:35]}  Nb8 {[%clk 0:00:04]} 38. Bd5+ {[%clk 0:01:35]}  Kg6 {[%clk 0:00:04]} 39. Rd2 {[%clk 0:01:34]}  Rfe8 {[%clk 0:00:04]} 40. Kg2 {[%clk 0:01:34]}  Nbc6 {[%clk 0:00:03]} 41. Be4 {[%clk 0:01:25]}  Kf7 {[%clk 0:00:03]} 42. d7 {[%clk 0:01:22]}  Rh8 {[%clk 0:00:03]} 43. Rd6 {[%clk 0:01:20]}  Nb4 {[%clk 0:00:02]} 44. Ng3 {[%clk 0:01:16]}  Rh6 {[%clk 0:00:01]} 45. Bf5 {[%clk 0:01:14]}  Ke7 {[%clk 0:00:01]} 46. Re6+ {[%clk 0:01:12]}  Kf7 {[%clk 0:00:01]} 47. Rxb6 {[%clk 0:01:10]}  c4 {[%clk 0:00:01]} 48. Rd6 {[%clk 0:01:07]}  cxb3 {[%clk 0:00:01]} 49. cxb3 {[%clk 0:01:08]}  Ke7 {[%clk 0:00:02]} 50. Rfd1 {[%clk 0:01:06]}  Rhh8 {[%clk 0:00:01]} 51. Ne4 {[%clk 0:01:00]}  Rh6 {[%clk 0:00:02]} 52. Re6+ {[%clk 0:00:56]}  Kf7 {[%clk 0:00:02]} 53. Re8 {[%clk 0:00:56]}  Nbc6 {[%clk 0:00:01]} 54. Nd6+ {[%clk 0:00:54]}  Kg7 {[%clk 0:00:01]} 55. Nb7 {[%clk 0:00:54]} 1-0


[Site "https://www.chess.com"]

[Event "Titled Tuesday Blitz June 21 Late 2022"]
[White "Fishbein, Alexander"]
[Black "Dobre, Claudiu-Cristian"]
[WhiteFideId "2000377"]
[BlackFideId "1211854"]
[WhiteElo "2442"]
[BlackElo "2207"]
[Result "0-1"]
[Round "08"]
[TimeControl "180+1"]
[Date "2022.06.21"]
[WhiteClock "0:00:07"]
[BlackClock "0:00:06"]

1. e4 {[%clk 0:03:00]}  Nc6 {[%clk 0:03:00]} 2. Nf3 {[%clk 0:02:59]}  d6 {[%clk 0:02:59]} 3. d4 {[%clk 0:02:58]}  Nf6 {[%clk 0:03:00]} 4. Nc3 {[%clk 0:02:56]}  e5 {[%clk 0:03:00]} 5. dxe5 {[%clk 0:02:56]}  Nxe5 {[%clk 0:02:59]} 6. Nxe5 {[%clk 0:02:56]}  dxe5 {[%clk 0:03:00]} 7. Qxd8+ {[%clk 0:02:55]}  Kxd8 {[%clk 0:03:00]} 8. Bc4 {[%clk 0:02:55]}  Bb4 {[%clk 0:03:01]} 9. Bd2 {[%clk 0:02:51]}  Ke7 {[%clk 0:02:58]} 10. O-O-O {[%clk 0:02:49]}  Be6 {[%clk 0:02:39]} 11. Nd5+ {[%clk 0:02:22]}  Nxd5 {[%clk 0:02:38]} 12. exd5 {[%clk 0:02:21]}  Bxd2+ {[%clk 0:02:38]} 13. Rxd2 {[%clk 0:02:22]}  Bf5 {[%clk 0:02:39]} 14. Re1 {[%clk 0:02:21]}  Kd6 {[%clk 0:02:39]} 15. Bb3 {[%clk 0:02:19]}  a5 {[%clk 0:02:26]} 16. a3 {[%clk 0:02:14]}  a4 {[%clk 0:02:25]} 17. Ba2 {[%clk 0:02:13]}  Ra5 {[%clk 0:02:10]} 18. g3 {[%clk 0:02:08]}  Rc5 {[%clk 0:02:07]} 19. Re3 {[%clk 0:01:48]}  f6 {[%clk 0:02:05]} 20. h4 {[%clk 0:01:37]}  h5 {[%clk 0:01:47]} 21. Kd1 {[%clk 0:01:27]}  Ra8 {[%clk 0:01:43]} 22. c4 {[%clk 0:01:16]}  Rb8 {[%clk 0:01:39]} 23. Rc3 {[%clk 0:01:12]}  b5 {[%clk 0:01:30]} 24. cxb5 {[%clk 0:01:02]}  Rxc3 {[%clk 0:01:27]} 25. bxc3 {[%clk 0:01:01]}  Rxb5 {[%clk 0:01:28]} 26. c4 {[%clk 0:00:59]}  Rb8 {[%clk 0:01:22]} 27. Ke2 {[%clk 0:00:47]}  Bb1 {[%clk 0:01:13]} 28. Bxb1 {[%clk 0:00:31]}  Rxb1 {[%clk 0:01:12]} 29. Ke3 {[%clk 0:00:19]}  f5 {[%clk 0:01:11]} 30. f4 {[%clk 0:00:18]}  Rc1 {[%clk 0:00:53]} 31. Kd3 {[%clk 0:00:16]}  Rg1 {[%clk 0:00:48]} 32. fxe5+ {[%clk 0:00:15]}  Kxe5 {[%clk 0:00:43]} 33. Re2+ {[%clk 0:00:15]}  Kd6 {[%clk 0:00:23]} 34. Re6+ {[%clk 0:00:16]}  Kd7 {[%clk 0:00:22]} 35. Rg6 {[%clk 0:00:16]}  f4 {[%clk 0:00:20]} 36. Rxg7+ {[%clk 0:00:16]}  Kc8 {[%clk 0:00:20]} 37. Rg5 {[%clk 0:00:12]}  fxg3 {[%clk 0:00:18]} 38. Ke2 {[%clk 0:00:10]}  g2 {[%clk 0:00:16]} 39. Kf2 {[%clk 0:00:10]}  Rc1 {[%clk 0:00:16]} 40. Kxg2 {[%clk 0:00:08]}  Rxc4 {[%clk 0:00:16]} 41. Rxh5 {[%clk 0:00:09]}  Rc2+ {[%clk 0:00:15]} 42. Kg3 {[%clk 0:00:08]}  Rc3+ {[%clk 0:00:15]} 43. Kg4 {[%clk 0:00:08]}  Rxa3 {[%clk 0:00:15]} 44. Rh8+ {[%clk 0:00:08]}  Kb7 {[%clk 0:00:15]} 45. h5 {[%clk 0:00:09]}  Ra1 {[%clk 0:00:14]} 46. h6 {[%clk 0:00:10]}  Rh1 {[%clk 0:00:13]} 47. Kg5 {[%clk 0:00:08]}  a3 {[%clk 0:00:09]} 48. d6 {[%clk 0:00:08]}  cxd6 {[%clk 0:00:07]} 49. Rh7+ {[%clk 0:00:08]}  Kb6 {[%clk 0:00:08]} 50. Rh8 {[%clk 0:00:09]}  a2 {[%clk 0:00:05]} 51. Ra8 {[%clk 0:00:08]}  a1=Q {[%clk 0:00:05]} 52. Rxa1 {[%clk 0:00:08]}  Rxa1 {[%clk 0:00:05]} 53. h7 {[%clk 0:00:07]}  Rh1 {[%clk 0:00:06]} 0-1


[Site "https://www.chess.com"]

[Event "Titled Tuesday Blitz June 21 Late 2022"]
[White "Gubajdullin, Alexei"]
[Black "Domingo Nunez, Alejandro"]
[WhiteFideId "4141202"]
[BlackFideId "22245561"]
[WhiteElo "2280"]
[BlackElo "2215"]
[Result "1-0"]
[Round "08"]
[TimeControl "180+1"]
[Date "2022.06.21"]
[WhiteClock "0:00:11"]
[BlackClock "0:00:04"]

1. c4 {[%clk 0:03:00]}  Nf6 {[%clk 0:02:49]} 2. g3 {[%clk 0:02:58]}  g6 {[%clk 0:02:49]} 3. Bg2 {[%clk 0:02:58]}  Bg7 {[%clk 0:02:49]} 4. Nc3 {[%clk 0:02:58]}  O-O {[%clk 0:02:50]} 5. Nf3 {[%clk 0:02:58]}  d6 {[%clk 0:02:50]} 6. O-O {[%clk 0:02:57]}  c5 {[%clk 0:02:50]} 7. d4 {[%clk 0:02:54]}  Nbd7 {[%clk 0:02:50]} 8. d5 {[%clk 0:02:51]}  Rb8 {[%clk 0:02:50]} 9. Qc2 {[%clk 0:02:49]}  a6 {[%clk 0:02:47]} 10. a4 {[%clk 0:02:47]}  b6 {[%clk 0:02:47]} 11. b3 {[%clk 0:02:47]}  Ne8 {[%clk 0:02:46]} 12. Bb2 {[%clk 0:02:46]}  Nc7 {[%clk 0:02:47]} 13. e4 {[%clk 0:02:46]}  b5 {[%clk 0:02:46]} 14. a5 {[%clk 0:02:37]}  bxc4 {[%clk 0:02:09]} 15. bxc4 {[%clk 0:02:36]}  Rb4 {[%clk 0:02:09]} 16. Nd2 {[%clk 0:02:13]}  Ne5 {[%clk 0:02:09]} 17. Ra4 {[%clk 0:02:01]}  Nd3 {[%clk 0:01:34]} 18. Rxb4 {[%clk 0:01:54]}  Nxb4 {[%clk 0:01:34]} 19. Qb1 {[%clk 0:01:44]}  e6 {[%clk 0:01:28]} 20. Na4 {[%clk 0:01:41]}  Bxb2 {[%clk 0:01:17]} 21. Qxb2 {[%clk 0:01:39]}  exd5 {[%clk 0:01:18]} 22. cxd5 {[%clk 0:01:38]}  Nb5 {[%clk 0:01:17]} 23. Nb6 {[%clk 0:01:36]}  Nd4 {[%clk 0:01:08]} 24. Ndc4 {[%clk 0:01:34]}  Qe7 {[%clk 0:00:43]} 25. f4 {[%clk 0:01:11]}  Bd7 {[%clk 0:00:32]} 26. e5 {[%clk 0:00:49]}  Bb5 {[%clk 0:00:32]} 27. exd6 {[%clk 0:00:41]}  Qf6 {[%clk 0:00:26]} 28. Qd2 {[%clk 0:00:27]}  Rd8 {[%clk 0:00:11]} 29. Re1 {[%clk 0:00:22]}  Kg7 {[%clk 0:00:08]} 30. h3 {[%clk 0:00:19]}  h5 {[%clk 0:00:07]} 31. Kh2 {[%clk 0:00:18]}  Nbc2 {[%clk 0:00:08]} 32. Re4 {[%clk 0:00:17]}  Nb4 {[%clk 0:00:04]} 33. Re7 {[%clk 0:00:16]}  Rxd6 {[%clk 0:00:03]} 34. Nxd6 {[%clk 0:00:12]}  Qxe7 {[%clk 0:00:03]} 35. Nxb5 {[%clk 0:00:12]}  axb5 {[%clk 0:00:04]} 36. Qc3 {[%clk 0:00:11]} 1-0


[Site "https://www.chess.com"]

[Event "Titled Tuesday Blitz June 21 Late 2022"]
[White "Kanyamarala, Tarun"]
[Black "Domingo Nunez, Ruben"]
[WhiteFideId "45004714"]
[BlackFideId "22245570"]
[WhiteElo "2219"]
[BlackElo "2376"]
[Result "0-1"]
[Round "08"]
[TimeControl "180+1"]
[Date "2022.06.21"]
[WhiteClock "0:01:19"]
[BlackClock "0:01:14"]

1. e4 {[%clk 0:03:00]}  Nc6 {[%clk 0:02:48]} 2. Nf3 {[%clk 0:03:00]}  d5 {[%clk 0:02:43]} 3. e5 {[%clk 0:03:00]}  Bg4 {[%clk 0:02:43]} 4. d4 {[%clk 0:02:59]}  e6 {[%clk 0:02:43]} 5. Be2 {[%clk 0:02:53]}  Qd7 {[%clk 0:02:41]} 6. c3 {[%clk 0:02:51]}  Be7 {[%clk 0:02:34]} 7. b4 {[%clk 0:02:42]}  f6 {[%clk 0:02:27]} 8. exf6 {[%clk 0:02:31]}  Nxf6 {[%clk 0:02:24]} 9. b5 {[%clk 0:02:30]}  Nd8 {[%clk 0:02:21]} 10. Ne5 {[%clk 0:02:29]}  Bxe2 {[%clk 0:02:21]} 11. Qxe2 {[%clk 0:02:26]}  Qc8 {[%clk 0:02:21]} 12. O-O {[%clk 0:02:22]}  Nf7 {[%clk 0:02:16]} 13. Nd3 {[%clk 0:02:09]}  O-O {[%clk 0:01:50]} 14. Nf4 {[%clk 0:02:06]}  Nd8 {[%clk 0:01:42]} 15. Re1 {[%clk 0:02:02]}  Bd6 {[%clk 0:01:34]} 16. Nd3 {[%clk 0:01:49]}  a6 {[%clk 0:01:29]} 17. bxa6 {[%clk 0:01:34]}  Rxa6 {[%clk 0:01:30]} 18. Nd2 {[%clk 0:01:33]}  Nf7 {[%clk 0:01:15]} 19. Qxe6 {[%clk 0:01:19]}  Bxh2+ {[%clk 0:01:14]} 0-1


[Site "https://www.chess.com"]

[Event "Titled Tuesday Blitz June 21 Late 2022"]
[White "Le, Tuan Minh"]
[Black "Kamsky, Gata"]
[WhiteFideId "12401153"]
[BlackFideId "2000024"]
[WhiteElo "2530"]
[BlackElo "2645"]
[Result "0-1"]
[Round "08"]
[TimeControl "180+1"]
[Date "2022.06.21"]
[WhiteClock "0:00:56"]
[BlackClock "0:00:53"]

1. d4 {[%clk 0:03:00]}  d5 {[%clk 0:02:54]} 2. Nf3 {[%clk 0:03:01]}  Nf6 {[%clk 0:02:53]} 3. Bf4 {[%clk 0:02:59]}  c5 {[%clk 0:02:48]} 4. c3 {[%clk 0:02:59]}  cxd4 {[%clk 0:02:46]} 5. cxd4 {[%clk 0:02:59]}  Nc6 {[%clk 0:02:46]} 6. Nc3 {[%clk 0:02:59]}  a6 {[%clk 0:02:46]} 7. Rc1 {[%clk 0:02:59]}  Bf5 {[%clk 0:02:45]} 8. Qb3 {[%clk 0:02:45]}  Na5 {[%clk 0:02:39]} 9. Qa4+ {[%clk 0:02:45]}  b5 {[%clk 0:02:33]} 10. Qd1 {[%clk 0:02:45]}  e6 {[%clk 0:02:26]} 11. e3 {[%clk 0:02:44]}  Bd6 {[%clk 0:02:15]} 12. Bxd6 {[%clk 0:02:30]}  Qxd6 {[%clk 0:02:14]} 13. Bd3 {[%clk 0:02:31]}  Bg4 {[%clk 0:02:12]} 14. O-O {[%clk 0:02:23]}  O-O {[%clk 0:02:12]} 15. b3 {[%clk 0:02:21]}  Rfc8 {[%clk 0:02:08]} 16. Qd2 {[%clk 0:02:20]}  Bxf3 {[%clk 0:02:08]} 17. gxf3 {[%clk 0:02:21]}  Nc6 {[%clk 0:02:07]} 18. Ne2 {[%clk 0:02:20]}  e5 {[%clk 0:02:03]} 19. Bb1 {[%clk 0:02:17]}  g6 {[%clk 0:01:49]} 20. Kg2 {[%clk 0:02:07]}  b4 {[%clk 0:01:43]} 21. dxe5 {[%clk 0:01:54]}  Nxe5 {[%clk 0:01:41]} 22. Rxc8+ {[%clk 0:01:55]}  Rxc8 {[%clk 0:01:41]} 23. Rc1 {[%clk 0:01:56]}  Rxc1 {[%clk 0:01:27]} 24. Qxc1 {[%clk 0:01:57]}  a5 {[%clk 0:01:18]} 25. Nd4 {[%clk 0:01:53]}  Kg7 {[%clk 0:01:17]} 26. Qc8 {[%clk 0:01:48]}  Qe7 {[%clk 0:01:04]} 27. f4 {[%clk 0:01:38]}  Ned7 {[%clk 0:01:00]} 28. Bd3 {[%clk 0:01:29]}  Nc5 {[%clk 0:00:57]} 29. Be2 {[%clk 0:01:25]}  Nce4 {[%clk 0:00:56]} 30. Bf3 {[%clk 0:01:18]}  Nc3 {[%clk 0:00:55]} 31. a4 {[%clk 0:01:15]}  Nfe4 {[%clk 0:00:55]} 32. Nc6 {[%clk 0:00:56]}  Qh4 {[%clk 0:00:53]} 0-1


[Site "https://www.chess.com"]

[Event "Titled Tuesday Blitz June 21 Late 2022"]
[White "Shimanov, Aleksandr"]
[Black "Terry, Renato"]
[WhiteFideId "4198603"]
[BlackFideId "3803457"]
[WhiteElo "2605"]
[BlackElo "2577"]
[Result "1/2-1/2"]
[Round "08"]
[TimeControl "180+1"]
[Date "2022.06.21"]
[WhiteClock "0:00:05"]
[BlackClock "0:00:06"]

1. e4 {[%clk 0:03:00]}  e6 {[%clk 0:03:00]} 2. d4 {[%clk 0:02:58]}  d5 {[%clk 0:03:00]} 3. Nc3 {[%clk 0:02:59]}  Nf6 {[%clk 0:02:59]} 4. Bg5 {[%clk 0:02:58]}  Bb4 {[%clk 0:02:59]} 5. exd5 {[%clk 0:02:32]}  Qxd5 {[%clk 0:02:58]} 6. Bxf6 {[%clk 0:02:28]}  Bxc3+ {[%clk 0:02:58]} 7. bxc3 {[%clk 0:02:28]}  gxf6 {[%clk 0:02:59]} 8. Nf3 {[%clk 0:02:28]}  Qa5 {[%clk 0:02:57]} 9. Qd2 {[%clk 0:02:28]}  Bd7 {[%clk 0:02:57]} 10. c4 {[%clk 0:02:23]}  Qxd2+ {[%clk 0:02:56]} 11. Kxd2 {[%clk 0:02:24]}  Bc6 {[%clk 0:02:57]} 12. Be2 {[%clk 0:02:22]}  Nd7 {[%clk 0:02:56]} 13. Rhd1 {[%clk 0:02:16]}  O-O-O {[%clk 0:02:55]} 14. Ke3 {[%clk 0:02:13]}  Nb6 {[%clk 0:02:55]} 15. g3 {[%clk 0:02:12]}  Rhg8 {[%clk 0:02:46]} 16. Ne1 {[%clk 0:02:09]}  Rg5 {[%clk 0:02:45]} 17. c5 {[%clk 0:02:00]}  Nd5+ {[%clk 0:02:41]} 18. Kd2 {[%clk 0:02:01]}  e5 {[%clk 0:02:31]} 19. c4 {[%clk 0:02:00]}  Ne7 {[%clk 0:02:19]} 20. d5 {[%clk 0:02:00]}  Ba4 {[%clk 0:02:19]} 21. Rdc1 {[%clk 0:01:56]}  e4 {[%clk 0:01:33]} 22. Kc3 {[%clk 0:01:52]}  Bd7 {[%clk 0:01:28]} 23. f4 {[%clk 0:01:32]}  exf3 {[%clk 0:01:21]} 24. Nxf3 {[%clk 0:01:32]}  Rh5 {[%clk 0:01:21]} 25. Rf1 {[%clk 0:01:26]}  c6 {[%clk 0:01:04]} 26. d6 {[%clk 0:01:02]}  Ng6 {[%clk 0:01:03]} 27. Nh4 {[%clk 0:00:40]}  Rxc5 {[%clk 0:01:02]} 28. Nxg6 {[%clk 0:00:40]}  hxg6 {[%clk 0:01:01]} 29. Rxf6 {[%clk 0:00:41]}  Be6 {[%clk 0:01:01]} 30. Rd1 {[%clk 0:00:39]}  Ra5 {[%clk 0:00:45]} 31. Rd2 {[%clk 0:00:38]}  c5 {[%clk 0:00:41]} 32. Bf3 {[%clk 0:00:34]}  Ra3+ {[%clk 0:00:38]} 33. Kb2 {[%clk 0:00:34]}  Ra6 {[%clk 0:00:32]} 34. Bd5 {[%clk 0:00:13]}  Raxd6 {[%clk 0:00:29]} 35. Bxe6+ {[%clk 0:00:13]}  Rxe6 {[%clk 0:00:23]} 36. Rxd8+ {[%clk 0:00:13]}  Kxd8 {[%clk 0:00:24]} 37. Rxf7 {[%clk 0:00:13]}  Re2+ {[%clk 0:00:24]} 38. Kb3 {[%clk 0:00:13]}  Kc8 {[%clk 0:00:24]} 39. Rg7 {[%clk 0:00:11]}  Rxh2 {[%clk 0:00:21]} 40. Rxg6 {[%clk 0:00:12]}  Kc7 {[%clk 0:00:20]} 41. Rg7+ {[%clk 0:00:11]}  Kb6 {[%clk 0:00:20]} 42. g4 {[%clk 0:00:09]}  Rh3+ {[%clk 0:00:18]} 43. Kb2 {[%clk 0:00:10]}  Ka6 {[%clk 0:00:16]} 44. g5 {[%clk 0:00:10]}  Rg3 {[%clk 0:00:17]} 45. g6 {[%clk 0:00:10]}  b6 {[%clk 0:00:13]} 46. Kc2 {[%clk 0:00:10]}  Ka5 {[%clk 0:00:11]} 47. Rxa7+ {[%clk 0:00:08]}  Kb4 {[%clk 0:00:12]} 48. g7 {[%clk 0:00:04]}  Kxc4 {[%clk 0:00:12]} 49. a4 {[%clk 0:00:04]}  Rg2+ {[%clk 0:00:11]} 50. Kd1 {[%clk 0:00:04]}  Kb4 {[%clk 0:00:08]} 51. Rb7 {[%clk 0:00:03]}  Kxa4 {[%clk 0:00:05]} 52. Rxb6 {[%clk 0:00:04]}  Rxg7 {[%clk 0:00:05]} 53. Kc2 {[%clk 0:00:04]}  Rg3 {[%clk 0:00:05]} 54. Rb8 {[%clk 0:00:04]}  Ka5 {[%clk 0:00:06]} 55. Rb7 {[%clk 0:00:04]}  Ka6 {[%clk 0:00:06]} 56. Rb8 {[%clk 0:00:04]}  Rh3 {[%clk 0:00:06]} 57. Rb1 {[%clk 0:00:04]}  Rf3 {[%clk 0:00:05]} 58. Rb8 {[%clk 0:00:04]}  Ka5 {[%clk 0:00:05]} 59. Rb7 {[%clk 0:00:04]}  Ka4 {[%clk 0:00:05]} 60. Rb8 {[%clk 0:00:04]}  Rg3 {[%clk 0:00:06]} 61. Rb7 {[%clk 0:00:05]}  Rh3 {[%clk 0:00:06]} 62. Rb8 {[%clk 0:00:05]}  Rh7 {[%clk 0:00:06]} 63. Kc3 {[%clk 0:00:05]}  Rh4 {[%clk 0:00:07]} 64. Rb7 {[%clk 0:00:05]}  Ka5 {[%clk 0:00:07]} 65. Rb8 {[%clk 0:00:05]}  Ka6 {[%clk 0:00:08]} 66. Rb1 {[%clk 0:00:05]}  Rf4 {[%clk 0:00:07]} 67. Rb8 {[%clk 0:00:05]}  Ka5 {[%clk 0:00:07]} 68. Rb1 {[%clk 0:00:05]}  Rg4 {[%clk 0:00:06]} 69. Rb8 {[%clk 0:00:05]} 1/2-1/2


[Site "https://www.chess.com"]